[Event "Szansa Chess Open 2022"]
[Site "Warsaw"]
[Date "2022.09.18"]
[Round "8"]
[White "Smieszek, Wojciech"]
[Black "Golecki, Jan"]
[Result "0-1"]
[ECO "C72"]
[WhiteElo "2082"]
[BlackElo "2193"]
[Annotator "TA"]
[PlyCount "106"]
[EventDate "2022.09.17"]
[EventCountry "POL"]
[SourceTitle "playchess.com"]
[Source "ChessBase"]
[SourceQuality "1"]
[TimeControl "900+10"]

{[%evp 11,106,34,43,0,8,7,8,7,9,0,43,-16,43,-16,57,-94,73,63,92,0,24,2,14,13,31,32,44,0,0,-14,0,0,0,0,0,9,8,-96,77,-302,-286,-293,-295,-287,-268,-267,-268,-285,-257,-277,-286,-273,-70,-67,-54,-101,-103,-102,-115,-185,-182,-180,-175,-227,-224,-244,-172,-293,-293,-314,-89,-197,-191,-203,-203,-203,-190,-173,-168,-151,-157,-278,-204,-454,-364,-364,-364,-364,-364,-12799,-12799,-4878,-4362,-29995,-29996,-29996,-29997]} 1. e4 {[%emt 0:00:02]} e5 {[%emt 0:00:01]} 2. Nf3 {[%emt 0:00:04]} Nc6 {[%emt 0:00:00]} 3. Bb5 {[%emt 0:00:01]} a6 {[%emt 0:00:01]} 4. Ba4 {[%emt 0:00:01]} d6 {[%emt 0:00:00]} 5. O-O {[%emt 0:00:10]} Bd7 {[%emt 0:00:01]} 6. c3 {[%emt 0:00:04]} g6 {[%emt 0:00:01]} 7. Qe2 {[%emt 0:00:54] C72: Ruy Lopez: Deferred Steinitz: 5 0-0.} Bg7 {[%emt 0:00:02]} 8. Rd1 {[%emt 0:00:03]} Nf6 {[%emt 0:00:46]} 9. d4 {[%emt 0:00:20] The position is equal.} O-O {[%emt 0:00:02][%cal Oc6d4] [#]} 10. Bc2 $146 {[%emt 0:00:24]} ({Predecessor:} 10. Bxc6 Bxc6 11. dxe5 Nxe4 12. Nd4 Qe8 13. Nxc6 Qxc6 14. f3 Nc5 15. exd6 Rfe8 16. Qf2 {1-0 (70) Tallaksen,L (2276)-Lie,K (2538) Norway 2018}) 10... h6 {[%emt 0:00:12]} 11. Nbd2 {[%emt 0:00:04]} (11. dxe5 $14 dxe5 12. Be3) 11... Qe7 {[%emt 0:00:14]} ({Black should try} 11... exd4 $11 12. Nxd4 Re8) 12. Nf1 {[%emt 0:00:14]} (12. d5 $14 Nd8 13. Nb3) 12... Rae8 {[%emt 0:00:01]} (12... exd4 $11 13. cxd4 Rae8) 13. Ne3 $2 {[%emt 0:01:00]} (13. d5 $14 {stays ahead.}) 13... Nd8 $2 {[%emt 0:01:07]} (13... exd4 $17 14. cxd4 Nxe4) 14. dxe5 $16 {[%emt 0:01:00]} dxe5 {[%emt 0:00:02]} 15. Bb3 {[%emt 0:00:27]} ({Better is} 15. a4 $16) 15... Bc6 {[%emt 0:00:14]} 16. Nd5 {[%emt 0:00:41]} Nxd5 {[%emt 0:00:12]} 17. exd5 {[%emt 0:00:06]} Bd7 {[%emt 0:00:01]} (17... Bb5 {is interesting.} 18. Qd2 Kh7 19. d6 Qd7) 18. Be3 {[%emt 0:00:14]} Kh7 {[%emt 0:00:23]} 19. a4 {[%emt 0:01:10]} e4 {[%emt 0:01:08]} 20. Nd4 {[%emt 0:00:18]} f5 {[%emt 0:00:02] Threatens to win with ...f4.} 21. Bf4 {[%emt 0:00:25]} Bc8 {[%emt 0:00:52]} 22. Qc4 {[%emt 0:00:43]} Be5 {[%emt 0:00:48]} 23. Bxe5 {[%emt 0:00:32]} Qxe5 {[%emt 0:00:01]} 24. d6 {[%emt 0:01:55]} (24. Re1 $11) 24... c5 $2 {[%emt 0:00:55] [#]} (24... Qxd6 $17 {keeps the pressure on.} 25. a5 Qe5) 25. Ne2 $2 {[%emt 0:00:53][%mdl 8192]} (25. Nf3 $1 $16 {[%cal Rf3e5] is necessary to keep the advantage.} Qe6 26. Nd2) 25... Be6 $19 {[%emt 0:00:03]} 26. Rd5 {[%emt 0:00:53]} Bxd5 {[%emt 0:00:01]} (26... Qxd5 $2 {too greedy.} 27. Qxd5 Bxd5 28. Bxd5 $19) 27. Qxd5 {[%emt 0:00:01]} Qxd5 {[%emt 0:00:01]} 28. Bxd5 {[%emt 0:00:01]} Rf6 {[%emt 0:00:01]} 29. Rd1 {[%emt 0:00:11]} ({Much weaker is} 29. d7 Ref8 30. Rd1 Kg7 $19) 29... Nf7 {[%emt 0:00:31]} ({Inferior is} 29... Rxd6 30. Bg8+ Kxg8 31. Rxd6 $17) 30. d7 {[%emt 0:00:26]} Rd8 {[%emt 0:00:01]} 31. Bxb7 {[%emt 0:00:05]} Nd6 $2 {[%emt 0:00:09]} (31... Rb6 $19 32. Bc8 Nd6) 32. Bxa6 $15 {[%emt 0:00:55]} Rxd7 {[%emt 0:00:09] White must now prevent ...Ra7.} 33. b4 {[%emt 0:00:20]} (33. Nf4 $1 $15 {is superior.}) 33... Ra7 $17 {[%emt 0:00:54]} 34. b5 {[%emt 0:00:27]} Nc4 {[%emt 0:00:04]} 35. Rd5 {[%emt 0:01:10]} (35. h4 $17) 35... Nb6 $36 {[%emt 0:00:01][%csl LRa4,LRd5][%mdl 2048] Black has strong initiative.} 36. Rxc5 {[%emt 0:00:12]} Nxa4 {[%emt 0:00:01]} 37. Rc4 {[%emt 0:00:35]} (37. Rc8 {was called for.}) 37... Nb6 {[%emt 0:00:04]} 38. Rc5 {[%emt 0:01:03]} Rd6 {[%emt 0:00:05][%cal Rd6d1]} 39. Nd4 {[%emt 0:00:09]} (39. h4 $142) 39... Na4 {[%emt 0:00:04]} 40. Rc6 {[%emt 0:00:49]} Rad7 {[%emt 0:00:01]} (40... Rxc6 $19 {has better winning chances.} 41. Nxc6 Rd7) 41. g3 {[%emt 0:01:15] [#]} (41. h4 $17) 41... Nxc3 $1 {[%emt 0:00:09][%mdl 512]} 42. Rxc3 {[%emt 0:00:06] aiming for Nc2.} Rxd4 {[%emt 0:00:01][%mdl 4096] Endgame KRR-KRB} 43. b6 {[%emt 0:00:05]} Rb4 {[%emt 0:00:34] Prevents Rb3.} 44. Rc7 {[%emt 0:00:23]} Rg7 {[%emt 0:00:00]} 45. Rc6 {[%emt 0:00:35]} h5 {[%emt 0:01:00]} 46. h4 {[%emt 0:00:15]} (46. Kf1 $17 {was worth a try.}) 46... Kh6 {[%emt 0:00:41]} 47. b7 $2 {[%emt 0:00:10]} (47. Bc8) 47... Rd7 {[%emt 0:00:04]} 48. Kf1 {[%emt 0:00:47] [#]} Rd2 $1 {[%emt 0:00:11] Hoping for ...Rb1+.} 49. Ke1 {[%emt 0:00:10]} Ra2 {[%emt 0:00:01] ( -> ...Rb1+)} 50. Kf1 $2 {[%emt 0:00:12]} (50. Kd1) 50... Rb1+ {[%emt 0:00:06]} 51. Kg2 {[%emt 0:00:01]} e3 {[%emt 0:00:02]} 52. Rc1 {[%emt 0:00:09]} Rxf2+ {[%emt 0:00:05]} 53. Kh3 {[%emt 0:00:02]} Rxc1 {[%emt 0:00:01] Weighted Error Value: White=0.77/Black=0.36} 0-1

[Event "Szansa Chess Open 2022"]
[Site "Warsaw"]
[Date "2022.09.18"]
[Round "8"]
[White "Omar, Ahmed"]
[Black "Derylo, Kamil"]
[Result "0-1"]
[ECO "A01"]
[WhiteElo "2064"]
[BlackElo "2143"]
[Annotator "TA"]
[PlyCount "90"]
[EventDate "2022.09.17"]
[EventCountry "POL"]
[SourceTitle "playchess.com"]
[Source "ChessBase"]
[SourceQuality "1"]
[TimeControl "900+10"]

{[%evp 9,90,0,0,-36,-5,-6,17,-6,19,31,49,31,72,49,183,56,45,45,107,103,106,104,107,84,95,84,84,88,87,50,93,88,92,85,135,122,124,93,110,52,185,178,196,192,356,-8,0,-5,-25,-108,0,-16,0,-7,-6,-26,-15,-160,-131,-151,-31,-104,-108,-109,-72,-69,-55,-244,-258,-283,-260,-272,-254,-251,-258,-249,-250,-372,-374,-29997,-29998,-29998,-29999]} 1. b3 {[%emt 0:00:03]} d5 {[%emt 0:00:06]} 2. e3 {[%emt 0:00:02]} Bf5 {[%emt 0:00:12]} 3. Bb2 {[%emt 0:00:01]} e6 {[%emt 0:00:05][%cal Be7e6,Be6e5][%mdl 32]} 4. f4 {[%emt 0:00:03]} Nf6 {[%emt 0:00:06]} 5. Nf3 {[%emt 0:00:02]} Nbd7 {[%emt 0:00:42]} 6. h3 {[%emt 0:00:04] A03: Bird's Opening with 1...d5.} Bd6 {[%emt 0:00:16] [#]} (6... Ne4 $5 {[%cal Rf8e7]}) 7. g4 $146 {[%emt 0:00:03]} ({Predecessor:} 7. Be2 h6 8. O-O O-O 9. d3 c6 10. Nbd2 Qc7 11. Nh4 Bh7 12. g4 e5 13. f5 Rfe8 {1-0 (92) Bocian,B (1450)-Niemier,H (1332) Kalisz 2013}) 7... Be4 {[%emt 0:00:05][%cal Oe6e5]} 8. Bg2 {[%emt 0:00:02] The position is equal.} e5 {[%emt 0:00:47]} 9. d3 {[%emt 0:02:11]} Bxf3 {[%emt 0:02:34]} 10. Qxf3 {[%emt 0:00:03] Strongly threatening g5.} e4 {[%emt 0:00:16]} 11. Qf2 {[%emt 0:01:04]} (11. Qe2 $5 {[%cal Rg4g5]} exd3 12. cxd3 $16) 11... Qe7 {[%emt 0:02:58]} (11... exd3 $14 12. cxd3 O-O) 12. Nc3 {[%emt 0:00:10]} (12. g5 $1 $18) 12... exd3 $14 {[%emt 0:00:49]} 13. cxd3 {[%emt 0:00:24] g5 is the strong threat.} d4 {[%emt 0:00:01]} (13... c6 $1 $14) 14. Nb5 $1 $16 {[%emt 0:04:42]} dxe3 {[%emt 0:01:54]} 15. Nxd6+ {[%emt 0:00:13]} cxd6 {[%emt 0:00:15]} 16. Qf3 {[%emt 0:01:34]} Nc5 {[%emt 0:00:01]} 17. O-O-O {[%emt 0:00:18][%mdl 1024] White has strong compensation.} O-O {[%emt 0:00:58]} 18. g5 {[%emt 0:00:34]} Nfd7 {[%emt 0:00:10]} 19. Rhe1 {[%emt 0:00:33]} Rfe8 {[%emt 0:00:20]} 20. Kb1 {[%emt 0:01:42]} a5 {[%emt 0:00:22]} 21. Bd4 {[%emt 0:01:35]} a4 {[%emt 0:01:03]} ({Black should try} 21... Nf8) 22. Rxe3 {[%emt 0:00:48]} Qd8 {[%emt 0:00:01]} 23. b4 {[%emt 0:00:39]} Ne6 {[%emt 0:00:24]} 24. Ba1 {[%emt 0:00:29] This bishop pair is nice.} (24. Qxb7 $2 Rb8 25. Rxe6 Rxb7 26. Rxe8+ Qxe8 $19) (24. Bc3 $1 $16) 24... Qb6 {[%emt 0:00:01]} (24... a3 $1 $14) 25. a3 $18 {[%emt 0:00:03]} d5 {[%emt 0:01:29]} 26. Rde1 {[%emt 0:00:43]} Red8 $2 {[%emt 0:01:01]} (26... Kf8 27. f5 (27. Qxd5 Nxf4 28. Rxe8+ Rxe8 $16) 27... Nc7) 27. Qe2 $2 {[%emt 0:01:17]} (27. Qxd5 Nxf4 28. Qxb7 Nxg2 29. Qxg2 Qg6 $16) (27. f5 $18 Nd4 28. Qxd5) 27... Nxf4 $11 {[%emt 0:00:24]} 28. Qb2 {[%emt 0:00:01][%csl Ga1][%cal Rb2g7]} d4 {[%emt 0:00:13] Active counter play!} 29. Rf3 {[%emt 0:00:22]} (29. Bxb7 $11 {remains equal.} Rab8 30. Rf3) 29... Ne6 {[%emt 0:00:55]} (29... Re8 $17 30. Ref1 (30. Rxe8+ $2 Rxe8 31. Rf1 Re2 $19) 30... Nxg2 31. Qxg2 Ne5) 30. h4 {[%emt 0:00:06]} Rac8 {[%emt 0:00:07]} 31. Bh3 {[%emt 0:00:06][%cal Of3f7] Black must now prevent Rxf7!} Ndf8 {[%emt 0:00:22] And now ...Rc3 would win.} 32. Qf2 {[%emt 0:00:04]} Rc7 {[%emt 0:00:10]} 33. Re4 {[%emt 0:00:17]} (33. Rf1 $11) 33... Rdc8 {[%emt 0:00:47] aiming for ...Rc1+.} 34. Bb2 {[%emt 0:00:02] Against Rc1+} ({Not} 34. Bxe6 $2 Rc1+ 35. Ka2 Nxe6 $19) 34... Rc2 {[%emt 0:00:10]} (34... Qb5 $17 {Threatens to win with ...Qd5.} 35. Qd2 Qd5 36. Bxe6 fxe6) 35. Qxc2 {[%emt 0:00:11]} ({Better is} 35. Re2 $1 $15 Rxe2 36. Qxe2) 35... Rxc2 $17 {[%emt 0:00:01]} 36. Kxc2 {[%emt 0:00:01]} Qc6+ {[%emt 0:00:01]} 37. Kb1 {[%emt 0:00:04]} Qd5 {[%emt 0:00:11]} 38. Rf5 $2 {[%emt 0:00:15]} (38. Ka1 $15) 38... Qb3 $19 {[%emt 0:00:03]} 39. Bf1 {[%emt 0:00:18]} Qd1+ {[%emt 0:00:24]} 40. Ka2 {[%emt 0:00:05] [#]} Ng6 $1 {[%emt 0:00:32]} 41. Be2 {[%emt 0:00:03] [#]} Qb3+ {[%emt 0:00:13]} ({Inferior is} 41... Qc2 42. Rf1 $17) 42. Kb1 {[%emt 0:00:02]} Ne7 {[%emt 0:00:05]} 43. Rb5 {[%emt 0:00:11]} (43. Rfe5 $142 Kf8 44. Kc1) 43... Nd5 {[%emt 0:00:06] The board is on fire.} 44. Ka1 $2 {[%emt 0:00:48]} (44. Rxd5 $19 Qxd5 45. Bd1) 44... Nc3 {[%emt 0:00:07]} 45. Bxc3 {[%emt 0:00:01]} dxc3 {[%emt 0:00:03] What a bad dream for White.  Weighted Error Value: White=0.49/Black=0.30} 0-1

[Event "Szansa Chess Open 2022"]
[Site "Warsaw"]
[Date "2022.09.18"]
[Round "8"]
[White "Kutowski, Marcel"]
[Black "Klim, Filip"]
[Result "1/2-1/2"]
[ECO "B92"]
[WhiteElo "2046"]
[BlackElo "2011"]
[Annotator "TA"]
[PlyCount "80"]
[EventDate "2022.09.17"]
[EventCountry "POL"]
[SourceTitle "playchess.com"]
[Source "ChessBase"]
[SourceQuality "1"]
[TimeControl "900+10"]

{[%evp 23,80,10,19,20,33,0,12,0,0,0,110,39,32,27,204,198,225,208,237,238,338,303,357,235,199,138,156,8,302,276,231,144,203,111,107,107,411,408,416,402,542,525,622,313,287,181,193,83,87,0,0,0,0,0,0,0,0,0,0]} 1. e4 {[%emt 0:00:01]} c5 {[%emt 0:00:02]} 2. Nf3 {[%emt 0:00:02]} d6 {[%emt 0:00:02]} 3. d4 {[%emt 0:00:07]} cxd4 {[%emt 0:00:01]} 4. Nxd4 {[%emt 0:00:01]} Nf6 {[%emt 0:00:02]} 5. Nc3 {[%emt 0:00:02]} a6 {[%emt 0:00:01]} 6. Be2 {[%emt 0:00:01]} e5 {[%emt 0:00:01]} 7. Nb3 {[%emt 0:00:01]} Be7 {[%emt 0:00:04]} 8. Be3 {[%emt 0:00:01]} Be6 {[%emt 0:00:03]} 9. Nd5 {[%emt 0:00:02]} Bxd5 {[%emt 0:00:54]} 10. exd5 {[%emt 0:00:02]} Nbd7 {[%emt 0:00:08]} 11. O-O {[%emt 0:00:29] 11.c4 injects fresh life into this line.} O-O {[%emt 0:00:03]} 12. c4 {[%emt 0:00:03]} Rc8 {[%emt 0:00:06]} 13. Rc1 {[%emt 0:00:02] B92: Sicilian Najdorf: 6 Be2.} Ne8 {[%emt 0:00:42]} 14. Qd2 {[%emt 0:00:17]} f5 {[%emt 0:02:17]} 15. f4 {[%emt 0:00:08]} Nef6 {[%emt 0:01:56] [#]} 16. Bf3 $146 {[%emt 0:00:57]} ({Predecessor:} 16. Bd3 e4 17. Be2 Nc5 18. Nd4 Qe8 19. Nxf5 Ncd7 20. Nd4 Rf7 21. Ne6 Nf8 22. f5 {0-1 (52) Walter,K (1845)-Fluechter,G (1880) Playchess.com INT 2012}) 16... b5 {[%emt 0:03:26]} (16... Re8 $11) 17. cxb5 {[%emt 0:01:09] White is more active.} (17. Na5 $1 $16) 17... axb5 {[%emt 0:00:20]} 18. Na5 {[%emt 0:01:51]} e4 $2 {[%emt 0:02:40]} (18... Rxc1 $11 {and Black has nothing to worry.} 19. Rxc1 exf4 20. Bxf4 Qb6+ 21. Kh1 Nc5) 19. Be2 $18 {[%emt 0:01:12]} Kh8 {[%emt 0:02:14]} 20. Nc6 {[%emt 0:00:22]} Qe8 {[%emt 0:00:09]} 21. Bxb5 {[%emt 0:00:33]} Bd8 {[%emt 0:00:37]} (21... Ng4 $142 22. Bd4 Bh4) 22. h3 {[%emt 0:03:04]} Qf7 {[%emt 0:00:13]} 23. Rfd1 {[%emt 0:00:14]} Bb6 {[%emt 0:00:19][%cal Of7d5] ...Qxd5! is the strong threat.} 24. Bc4 {[%emt 0:01:40]} (24. a4 $1 $18) 24... Nh5 {[%emt 0:01:12]} 25. Nd4 {[%emt 0:01:23]} (25. a4 $1 $16) 25... Rxc4 $4 {[%emt 0:00:52][%mdl 8192]} 26. Rxc4 {[%emt 0:00:02] Black must now prevent Ne6.} Qxd5 {[%emt 0:00:02]} 27. b3 {[%emt 0:00:18] And now Nc2 would win.} g5 {[%emt 0:00:23] [#]} 28. Nc2 {[%emt 0:01:28]} ({Not} 28. fxg5 f4 29. Qc3 Qe5 $11) (28. Nxf5 $1 $18 {[%mdl 512]} Qxf5 29. Bxb6 Nxb6 30. Qd4+ Kg8 31. Qxb6) 28... Qxd2 {[%emt 0:00:45]} 29. Rxd2 {[%emt 0:00:01]} gxf4 $2 {[%emt 0:00:08][%mdl 8192]} (29... Bxe3+ $16 {is a better chance.} 30. Nxe3 gxf4 31. Nxf5 (31. Rxd6 Ne5 $11) 31... Rxf5) 30. Bxb6 {[%emt 0:00:08]} ({Weaker is} 30. Rxd6 fxe3 31. Rxd7 e2+ 32. Kh2 Bf2 $17) 30... Nxb6 {[%emt 0:00:01]} 31. Rc6 {[%emt 0:00:09]} Nd7 {[%emt 0:00:12]} 32. Rcxd6 {[%emt 0:00:15]} Ne5 {[%emt 0:00:02]} 33. R6d5 {[%emt 0:00:43]} Nd3 {[%emt 0:00:03]} 34. R5xd3 {[%emt 0:00:12]} exd3 {[%emt 0:00:02]} 35. Rxd3 {[%emt 0:00:01][%mdl 4096] Endgame KRN-KRN} (35. Nb4 $18 {is more deadly.}) 35... Rc8 $16 {[%emt 0:00:06] [#]} 36. Rd2 {[%emt 0:00:22]} ({White should play} 36. Ne1 $1 $16) 36... Ng3 $1 $11 {[%emt 0:00:02] The position is equal.} 37. a4 {[%emt 0:00:55]} Ne4 {[%emt 0:00:01]} 38. Re2 {[%emt 0:00:01]} Ng3 {[%emt 0:00:02]} 39. Rf2 {[%emt 0:00:25]} Ne4 {[%emt 0:00:10]} 40. Re2 {[%emt 0:00:59]} Ng3 {[%emt 0:00:01] Blacks defense is rewarded with a draw.  Weighted Error Value: White=0.54/Black=0.56} 1/2-1/2

[Event "Szansa Chess Open 2022"]
[Site "Warsaw"]
[Date "2022.09.18"]
[Round "8"]
[White "Kulesza, Andrzej"]
[Black "Siekanska, Maria"]
[Result "0-1"]
[ECO "B97"]
[WhiteElo "2014"]
[BlackElo "2029"]
[Annotator "TA"]
[PlyCount "100"]
[EventDate "2022.09.17"]
[EventCountry "POL"]
[SourceTitle "playchess.com"]
[Source "ChessBase"]
[SourceQuality "1"]
[TimeControl "900+10"]

{[%evp 20,100,-21,-22,-20,-29,-9,-7,0,0,-7,0,-7,-2,-26,0,-18,-403,-407,-399,-397,-390,-401,-374,-389,-425,-425,-413,-414,-480,-480,-469,-477,-484,-471,-477,-464,-487,-482,-486,-506,-528,-501,-558,-535,-555,-540,-743,-741,-765,-760,-762,-741,-718,-734,-950,-950,-994,-1017,-1354,-1350,-1760,-1718,-1796,-1693,-2747,-2319,-2732,-2390,-2727,-2573,-3127,-3981,-29981,-29981,-29982,-29983,-29982,-29981,-29989,-29988,-29990,-29991]} 1. e4 c5 {[%emt 0:00:01]} 2. Nf3 {[%emt 0:00:07]} d6 {[%emt 0:00:01]} 3. d4 {[%emt 0:00:01]} cxd4 {[%emt 0:00:02]} 4. Nxd4 {[%emt 0:00:02]} Nf6 {[%emt 0:00:01]} 5. Nc3 {[%emt 0:00:01]} a6 {[%emt 0:00:02]} 6. Bg5 {[%emt 0:00:03]} e6 {[%emt 0:00:01]} 7. f4 {[%emt 0:00:02]} Qb6 {[%emt 0:00:02]} 8. Qd2 {[%emt 0:00:02]} Qxb2 {[%emt 0:00:04]} 9. Rb1 {[%emt 0:00:01]} Qa3 {[%emt 0:00:01]} 10. e5 {[%emt 0:00:01]} h6 {[%emt 0:00:04]} 11. Bh4 {[%emt 0:00:19]} (11. exf6 hxg5 12. fxg7 (12. fxg5 gxf6 13. Nf3 fxg5 $19) 12... Bxg7 13. fxg5 b5 $17) 11... dxe5 {[%emt 0:00:03] B97: Sicilian Najdorf: Poisoned Pawn.} 12. fxe5 {[%emt 0:00:01]} Nfd7 {[%emt 0:00:03]} (12... g5 $5 {[%cal Rf8b4]} 13. exf6 gxh4 $11) 13. Ne4 $1 {[%emt 0:00:07]} Qxa2 {[%emt 0:00:05] The position is equal.} 14. Rd1 {[%emt 0:00:01]} (14. Nc3 $2 Qa5 15. Be2 Nxe5 $19) 14... Qd5 {[%emt 0:00:07]} 15. Qe3 {[%emt 0:00:02]} Qxe5 {[%emt 0:00:08] [#] Threatens to win with ...Bb4+.} (15... Nxe5 $2 16. Nb3 Qxd1+ 17. Kxd1 $18) 16. Be2 {[%emt 0:00:16]} Bc5 {[%emt 0:00:09]} 17. Bg3 {[%emt 0:00:04]} Qd5 $1 {[%emt 0:00:03][%mdl 4] [#] ...0-0 is the strong threat. is now more promising than 17...Bxd4.} 18. Nxe6 $146 {[%emt 0:00:44][%mdl 8192] This costs White the game.} ({Predecessor:} 18. c4 Bxd4 19. Rxd4 Qa5+ 20. Rd2 O-O 21. Bd6 f5 22. Bxf8 Nxf8 23. Nd6 Nbd7 24. g4 fxg4 25. Bxg4 {0-1 (46) Radjabov,T (2765)-Ding,L (2791) chess24.com INT 2020}) 18... Qxe6 $19 {[%emt 0:00:25]} ({Don't do} 18... Bxe3 19. Nc7+ (19. Rxd5 $2 {too greedy.} fxe6 20. Rd3 Bg5 $19) 19... Kf8 20. Nxd5 $18) ({Weaker is} 18... Qxd1+ 19. Kxd1 Bxe3 20. Nc7+ Kd8 21. Nxa8 $17) 19. Nd6+ {[%emt 0:00:28]} Bxd6 {[%emt 0:00:06]} 20. Qxe6+ {[%emt 0:00:02]} fxe6 {[%emt 0:00:02]} 21. Bh5+ {[%emt 0:00:01]} Kf8 {[%emt 0:01:27]} 22. Bxd6+ {[%emt 0:00:11]} Kg8 {[%emt 0:00:02]} 23. O-O {[%emt 0:00:08]} Nc6 {[%emt 0:00:54]} 24. Bf7+ {[%emt 0:00:21]} Kh7 {[%emt 0:00:02]} 25. Bxe6 {[%emt 0:00:01]} Nf6 {[%emt 0:00:07]} 26. Bc4 {[%emt 0:00:03]} Rd8 {[%emt 0:00:30]} 27. Bd3+ {[%emt 0:00:23]} Kh8 {[%emt 0:00:04]} 28. Bc7 {[%emt 0:00:12]} Rd5 {[%emt 0:00:53]} 29. Rde1 {[%emt 0:00:31][%cal Oe1e8] [#] And now Re8+! would win.} Bd7 {[%emt 0:00:34] Prevents Re8+.} 30. Bf4 {[%emt 0:00:08]} Re8 {[%emt 0:00:31]} 31. Rb1 {[%emt 0:00:01]} b5 {[%emt 0:01:33]} 32. Bxh6 {[%emt 0:00:05]} Ne5 {[%emt 0:00:16]} 33. Bg5 {[%emt 0:00:44]} Nxd3 {[%emt 0:00:10]} 34. Bxf6 {[%emt 0:00:01]} gxf6 {[%emt 0:00:24]} 35. cxd3 {[%emt 0:00:01]} Kg7 {[%emt 0:00:33]} 36. Ra1 {[%emt 0:00:08]} Ra8 {[%emt 0:00:10]} 37. Rf3 {[%emt 0:00:02]} a5 {[%emt 0:00:09][%cal Ba6a5,Ba5a4,Ba4a3,Ba3a2][%mdl 32]} 38. Re1 {[%emt 0:00:04]} Kf7 {[%emt 0:00:16]} 39. h3 {[%emt 0:00:06]} a4 {[%emt 0:00:09] Hoping for ...a3.} 40. g4 {[%emt 0:00:12]} a3 {[%emt 0:00:24]} 41. Ref1 {[%emt 0:00:01]} Rd6 {[%emt 0:00:17] White must now prevent ...b4.} 42. g5 {[%emt 0:00:08]} a2 {[%emt 0:00:07]} 43. Ra1 {[%emt 0:00:01]} b4 {[%emt 0:00:04][%cal Bb5b4,Bb4b3][%mdl 32]} 44. d4 {[%emt 0:00:08]} Bc6 {[%emt 0:00:31]} 45. Rf2 {[%emt 0:00:11]} b3 {[%emt 0:00:11]} 46. Kh2 {[%emt 0:00:08]} Rxd4 {[%emt 0:00:21] Black mates.} 47. Rxf6+ {[%emt 0:00:03]} Kg7 {[%emt 0:00:01]} 48. Rf2 {[%emt 0:00:34]} Be4 {[%emt 0:00:33]} 49. Rb2 {[%emt 0:00:09]} Bc2 {[%emt 0:00:04]} 50. Kg3 {[%emt 0:00:02]} Rd1 {[%emt 0:00:07] Weighted Error Value: White=0.47/Black=0.02 (flawless)} 0-1